[Event "*** Titled Tuesday Blitz"]
[Site "Chess.com"]
[Date "2019.10.01"]
[Round "7"]
[White "VladDobrov"]
[Black "VincentKeymer"]
[Result "1-0"]
[WhiteElo "2952"]
[BlackElo "2752"]
[TimeControl "180+2"]
[EndTime "14:37:24 PDT"]
[Termination "VladDobrov won by resignation"]

1. d4 {[%clk 0:03:01.9]} 1... Nf6 {[%clk 0:02:59]} 2. c4 {[%clk 0:03:03.4]} 2...
e6 {[%clk 0:03:00.2]} 3. Nf3 {[%clk 0:03:04.9]} 3... d5 {[%clk 0:03:01.1]} 4.
Nc3 {[%clk 0:03:06.3]} 4... c5 {[%clk 0:03:02.4]} 5. e3 {[%clk 0:03:05.5]} 5...
dxc4 {[%clk 0:02:57.7]} 6. Bxc4 {[%clk 0:03:05.9]} 6... a6 {[%clk 0:02:58.6]} 7.
a4 {[%clk 0:03:06.4]} 7... Nc6 {[%clk 0:02:58.6]} 8. O-O {[%clk 0:02:59.7]} 8...
Be7 {[%clk 0:02:59.7]} 9. Qe2 {[%clk 0:02:58.9]} 9... cxd4 {[%clk 0:02:53.6]}
10. Rd1 {[%clk 0:02:57.1]} 10... e5 {[%clk 0:02:52.5]} 11. exd4 {[%clk
0:02:41.8]} 11... exd4 {[%clk 0:02:52.6]} 12. Nxd4 {[%clk 0:02:16.7]} 12... Nxd4
{[%clk 0:02:52.7]} 13. Qe5 {[%clk 0:02:18.3]} 13... Qd6 {[%clk 0:02:51.1]} 14.
Qxd6 {[%clk 0:02:17.5]} 14... Bxd6 {[%clk 0:02:51.1]} 15. Rxd4 {[%clk
0:02:19.4]} 15... Bc5 {[%clk 0:02:50.4]} 16. Rf4 {[%clk 0:02:11.7]} 16... Be6
{[%clk 0:02:39.3]} 17. Bxe6 {[%clk 0:02:06.5]} 17... fxe6 {[%clk 0:02:40.1]} 18.
Rc4 {[%clk 0:02:06.7]} 18... Bd6 {[%clk 0:02:29.2]} 19. Bf4 {[%clk 0:01:59.4]}
19... Bxf4 {[%clk 0:02:26.1]} 20. Rxf4 {[%clk 0:02:01.2]} 20... Ke7 {[%clk
0:02:27.3]} 21. Re1 {[%clk 0:02:01.1]} 21... Rhd8 {[%clk 0:02:26]} 22. Rb4
{[%clk 0:02:01.5]} 22... Rab8 {[%clk 0:02:15.7]} 23. h4 {[%clk 0:01:55]} 23...
Rd6 {[%clk 0:02:13.4]} 24. g3 {[%clk 0:01:46.7]} 24... b6 {[%clk 0:02:07.7]} 25.
Rc4 {[%clk 0:01:45.8]} 25... Rbd8 {[%clk 0:02:04.5]} 26. Kg2 {[%clk 0:01:41.4]}
26... Rd4 {[%clk 0:01:56]} 27. Rc7+ {[%clk 0:01:35.7]} 27... R8d7 {[%clk
0:01:54.2]} 28. Rc8 {[%clk 0:01:34.2]} 28... Rd8 {[%clk 0:01:52.8]} 29. Rxd8
{[%clk 0:01:34.9]} 29... Rxd8 {[%clk 0:01:52.5]} 30. Re2 {[%clk 0:01:35.9]}
30... Rd4 {[%clk 0:01:52.8]} 31. f4 {[%clk 0:01:32.8]} 31... Kd6 {[%clk
0:01:47.8]} 32. Kf3 {[%clk 0:01:27.5]} 32... h5 {[%clk 0:01:46.1]} 33. Ke3
{[%clk 0:00:59]} 33... Rb4 {[%clk 0:01:40.7]} 34. Kd3 {[%clk 0:00:56.6]} 34...
Nd7 {[%clk 0:01:18.8]} 35. Kc2 {[%clk 0:00:57.2]} 35... Nc5 {[%clk 0:01:15.9]}
36. Re5 {[%clk 0:00:58.3]} 36... Nxa4 {[%clk 0:01:09.8]} 37. Nxa4 {[%clk
0:00:55.3]} 37... Rxa4 {[%clk 0:01:10.4]} 38. Rxh5 {[%clk 0:00:57.2]} 38... Rc4+
{[%clk 0:01:11.4]} 39. Kd3 {[%clk 0:00:57.8]} 39... Rc7 {[%clk 0:01:07.1]} 40.
Rg5 {[%clk 0:00:59.1]} 40... Ke7 {[%clk 0:01:04.6]} 41. Rxg7+ {[%clk 0:00:58]}
1-0

[Event "*** Titled Tuesday Blitz"]
[Site "Chess.com"]
[Date "2019.10.01"]
[Round "7"]
[White "harvsp123"]
[Black "Quaritch79"]
[Result "1-0"]
[WhiteElo "2492"]
[BlackElo "2305"]
[TimeControl "180+2"]
[EndTime "14:37:24 PDT"]
[Termination "harvsp123 won by resignation"]

1. d4 {[%clk 0:02:48.1]} 1... f5 {[%clk 0:03:00.5]} 2. Nf3 {[%clk 0:02:48.7]}
2... Nf6 {[%clk 0:03:01.8]} 3. g3 {[%clk 0:02:50.2]} 3... g6 {[%clk 0:03:03.2]}
4. Bg2 {[%clk 0:02:50.6]} 4... Bg7 {[%clk 0:03:04.9]} 5. O-O {[%clk 0:02:49.6]}
5... O-O {[%clk 0:03:06.4]} 6. Nbd2 {[%clk 0:02:51.5]} 6... d6 {[%clk
0:03:06.2]} 7. c3 {[%clk 0:02:53]} 7... Nc6 {[%clk 0:03:07.5]} 8. b4 {[%clk
0:02:52.7]} 8... a6 {[%clk 0:03:07.4]} 9. Re1 {[%clk 0:02:01.2]} 9... e5 {[%clk
0:03:07.3]} 10. dxe5 {[%clk 0:01:59.9]} 10... dxe5 {[%clk 0:03:08.3]} 11. e4
{[%clk 0:02:01.8]} 11... f4 {[%clk 0:02:59.7]} 12. Qb3+ {[%clk 0:02:01.2]} 12...
Kh8 {[%clk 0:03:00.6]} 13. Nc4 {[%clk 0:02:02]} 13... Ng4 {[%clk 0:02:58]} 14.
h3 {[%clk 0:01:56.1]} 14... Nh6 {[%clk 0:02:58.8]} 15. Qd1 {[%clk 0:01:37.5]}
15... Qe7 {[%clk 0:02:49.1]} 16. a4 {[%clk 0:01:33.9]} 16... Be6 {[%clk
0:02:50.1]} 17. Qe2 {[%clk 0:01:33.7]} 17... Rad8 {[%clk 0:02:38]} 18. b5 {[%clk
0:01:31]} 18... axb5 {[%clk 0:02:29.1]} 19. axb5 {[%clk 0:01:32.9]} 19... Bxc4
{[%clk 0:02:29.8]} 20. Qxc4 {[%clk 0:01:32.4]} 20... Nb8 {[%clk 0:02:30.8]} 21.
Ba3 {[%clk 0:01:32.5]} 21... Qf7 {[%clk 0:02:29.9]} 22. Qxf7 {[%clk 0:01:20.6]}
22... Rxf7 {[%clk 0:02:24.6]} 23. Ng5 {[%clk 0:01:14.9]} 23... Rfd7 {[%clk
0:02:21.1]} 24. Ne6 {[%clk 0:01:16.4]} 24... Re8 {[%clk 0:02:20.3]} 25. Nxg7
{[%clk 0:01:17.9]} 25... Kxg7 {[%clk 0:02:21.7]} 26. gxf4 {[%clk 0:01:19.5]}
26... exf4 {[%clk 0:02:22.7]} 27. Bc5 {[%clk 0:01:19.2]} 27... b6 {[%clk
0:02:21.6]} 28. Bd4+ {[%clk 0:01:19.9]} 28... Kf7 {[%clk 0:02:21.9]} 29. Bf1
{[%clk 0:01:18.9]} 29... c5 {[%clk 0:02:14.7]} 30. bxc6 {[%clk 0:01:19.4]} 30...
Nxc6 {[%clk 0:02:16.1]} 31. Bc4+ {[%clk 0:01:21.2]} 31... Ke7 {[%clk 0:02:17.1]}
32. Bxb6 {[%clk 0:01:21.1]} 32... Ne5 {[%clk 0:02:15.9]} 33. Bc5+ {[%clk
0:01:22.6]} 33... Kf6 {[%clk 0:02:15]} 34. Ra6+ {[%clk 0:01:18.6]} 34... Kg5
{[%clk 0:02:14.9]} 35. Bb5 {[%clk 0:01:14.3]} 35... Nf3+ {[%clk 0:02:06]} 36.
Kf1 {[%clk 0:01:14.6]} 36... Red8 {[%clk 0:01:37.5]} 37. Bxd7 {[%clk 0:01:11.5]}
37... Rxd7 {[%clk 0:01:39]} 38. Bf8 {[%clk 0:01:02]} 38... Nf7 {[%clk
0:01:35.5]} 39. Ra5+ {[%clk 0:00:58.7]} 39... Kh4 {[%clk 0:01:35]} 40. e5 {[%clk
0:00:58.1]} 40... Rd8 {[%clk 0:01:24.2]} 41. Be7+ {[%clk 0:00:57.9]} 41... Kxh3
{[%clk 0:01:25.8]} 42. Bxd8 {[%clk 0:00:57.8]} 1-0

[Event "*** Titled Tuesday Blitz"]
[Site "Chess.com"]
[Date "2019.10.01"]
[Round "7"]
[White "WorldChampionBulletChess"]
[Black "beccrajoy"]
[Result "0-1"]
[WhiteElo "2077"]
[BlackElo "1789"]
[TimeControl "180+2"]
[EndTime "14:37:32 PDT"]
[Termination "beccrajoy won by checkmate"]

1. d4 {[%clk 0:03:01.9]} 1... d5 {[%clk 0:03:01.1]} 2. e3 {[%clk 0:03:03.8]}
2... Nf6 {[%clk 0:02:58.6]} 3. Nf3 {[%clk 0:03:05]} 3... c5 {[%clk 0:02:56.6]}
4. Be2 {[%clk 0:03:06.5]} 4... Nc6 {[%clk 0:02:58]} 5. O-O {[%clk 0:03:06.6]}
5... Bf5 {[%clk 0:02:56.6]} 6. c3 {[%clk 0:03:07.2]} 6... e6 {[%clk 0:02:57.8]}
7. b3 {[%clk 0:03:04.1]} 7... Bd6 {[%clk 0:02:56.8]} 8. dxc5 {[%clk 0:03:04.1]}
8... Bxc5 {[%clk 0:02:57.2]} 9. b4 {[%clk 0:03:03.7]} 9... Bd6 {[%clk 0:02:53]}
10. b5 {[%clk 0:03:05]} 10... Ne5 {[%clk 0:02:52.1]} 11. Nbd2 {[%clk 0:02:56.2]}
11... O-O {[%clk 0:02:34.9]} 12. Nxe5 {[%clk 0:02:55.9]} 12... Bxe5 {[%clk
0:02:35.5]} 13. Bb2 {[%clk 0:02:51.9]} 13... Rc8 {[%clk 0:02:35.4]} 14. Rc1
{[%clk 0:02:50.1]} 14... Qa5 {[%clk 0:02:33.8]} 15. Qb3 {[%clk 0:02:50]} 15...
Ne4 {[%clk 0:02:26.4]} 16. Nxe4 {[%clk 0:02:38.9]} 16... Bxe4 {[%clk 0:02:21]}
17. Rfd1 {[%clk 0:02:29.6]} 17... Bf6 {[%clk 0:02:17.5]} 18. f3 {[%clk
0:02:29.7]} 18... Bg6 {[%clk 0:02:16]} 19. Ba3 {[%clk 0:02:25.2]} 19... Rfd8
{[%clk 0:02:11]} 20. Bb4 {[%clk 0:02:17.5]} 20... Qb6 {[%clk 0:02:07.4]} 21. Kf2
{[%clk 0:02:17.8]} 21... h6 {[%clk 0:01:46]} 22. c4 {[%clk 0:01:13.5]} 22...
dxc4 {[%clk 0:01:42.5]} 23. Bxc4 {[%clk 0:01:11.6]} 23... Rxd1 {[%clk
0:01:27.2]} 24. Rxd1 {[%clk 0:01:13.5]} 24... Qc7 {[%clk 0:01:28]} 25. Be2
{[%clk 0:01:03.2]} 25... Qxh2 {[%clk 0:01:27.4]} 26. Bf1 {[%clk 0:00:55.6]}
26... Bc2 {[%clk 0:01:09.5]} 27. Qa3 {[%clk 0:00:09.4]} 27... Bxd1 {[%clk
0:01:06.3]} 28. Qd3 {[%clk 0:00:03.2]} 28... Bh4# {[%clk 0:00:55.5]} 0-1

[Event "*** Titled Tuesday Blitz"]
[Site "Chess.com"]
[Date "2019.10.01"]
[Round "7"]
[White "Bagirova"]
[Black "WeAintSurePal"]
[Result "0-1"]
[WhiteElo "2084"]
[BlackElo "2352"]
[TimeControl "180+2"]
[EndTime "14:37:33 PDT"]
[Termination "WeAintSurePal won by checkmate"]

1. e4 {[%clk 0:03:01.9]} 1... c6 {[%clk 0:02:57.2]} 2. Nf3 {[%clk 0:03:01.1]}
2... d5 {[%clk 0:02:58.3]} 3. Nc3 {[%clk 0:03:02.5]} 3... dxe4 {[%clk 0:02:59]}
4. Nxe4 {[%clk 0:03:03.2]} 4... Nf6 {[%clk 0:03:00.6]} 5. Nxf6+ {[%clk
0:03:03.7]} 5... exf6 {[%clk 0:03:02.5]} 6. Bc4 {[%clk 0:03:04.3]} 6... Bd6
{[%clk 0:03:04]} 7. O-O {[%clk 0:02:55.2]} 7... O-O {[%clk 0:03:04.6]} 8. h3
{[%clk 0:02:53.7]} 8... Nd7 {[%clk 0:03:05.6]} 9. d4 {[%clk 0:02:54.8]} 9... Re8
{[%clk 0:03:06]} 10. c3 {[%clk 0:02:53.9]} 10... Nf8 {[%clk 0:03:00.7]} 11. Bd2
{[%clk 0:02:40.4]} 11... Bc7 {[%clk 0:02:59.4]} 12. Qb3 {[%clk 0:02:37.3]} 12...
Be6 {[%clk 0:02:58.7]} 13. Bxe6 {[%clk 0:02:33.8]} 13... Nxe6 {[%clk 0:03:00.6]}
14. Qxb7 {[%clk 0:02:32]} 14... Rb8 {[%clk 0:03:00.9]} 15. Qxc6 {[%clk
0:02:30.8]} 15... Rb6 {[%clk 0:03:00.6]} 16. Qc4 {[%clk 0:02:27.9]} 16... Rxb2
{[%clk 0:03:01]} 17. d5 {[%clk 0:02:25.2]} 17... Nf8 {[%clk 0:02:53]} 18. Rad1
{[%clk 0:02:19.1]} 18... Qd6 {[%clk 0:02:52.1]} 19. Bc1 {[%clk 0:02:15.9]} 19...
Rbe2 {[%clk 0:02:50.7]} 20. Ba3 {[%clk 0:02:03.2]} 20... Qd7 {[%clk 0:02:38.9]}
21. d6 {[%clk 0:02:02.5]} 21... Bb6 {[%clk 0:02:39.5]} 22. Bc5 {[%clk
0:01:59.3]} 22... Qc6 {[%clk 0:02:36.4]} 23. Nd4 {[%clk 0:01:45.2]} 23... Qxc5
{[%clk 0:02:33.5]} 24. Qxc5 {[%clk 0:01:39]} 24... Bxc5 {[%clk 0:02:34.3]} 25.
Nxe2 {[%clk 0:01:40.3]} 25... Rxe2 {[%clk 0:02:34.9]} 26. d7 {[%clk 0:01:40.7]}
26... Nxd7 {[%clk 0:02:35.1]} 27. Rxd7 {[%clk 0:01:40.4]} 27... Kf8 {[%clk
0:02:36.1]} 28. Rc7 {[%clk 0:01:32.8]} 28... Bb6 {[%clk 0:02:36.5]} 29. Rc8+
{[%clk 0:01:32.2]} 29... Ke7 {[%clk 0:02:37.6]} 30. a4 {[%clk 0:01:32.7]} 30...
h5 {[%clk 0:02:35.3]} 31. c4 {[%clk 0:01:31]} 31... Rc2 {[%clk 0:02:36.7]} 32.
Re1+ {[%clk 0:01:27.6]} 32... Kd7 {[%clk 0:02:37.4]} 33. Ree8 {[%clk 0:01:25.8]}
33... Bxf2+ {[%clk 0:02:31]} 34. Kh2 {[%clk 0:01:23.1]} 34... h4 {[%clk
0:02:31.6]} 35. Red8+ {[%clk 0:01:20.4]} 35... Ke6 {[%clk 0:02:31.5]} 36. Re8+
{[%clk 0:01:13.1]} 36... Kf5 {[%clk 0:02:31.8]} 37. g4+ {[%clk 0:00:59.2]} 37...
Kf4 {[%clk 0:02:25.8]} 38. Kg2 {[%clk 0:00:59.4]} 38... Bd4+ {[%clk 0:02:21.5]}
39. Kf1 {[%clk 0:00:55.1]} 39... Kf3 {[%clk 0:02:12.6]} 40. c5 {[%clk
0:00:36.6]} 40... Bf2 {[%clk 0:02:07.5]} 41. Re1 {[%clk 0:00:29.3]} 41... Bxc5
{[%clk 0:02:06]} 42. Rd1 {[%clk 0:00:23.6]} 42... Rf2+ {[%clk 0:02:00.1]} 43.
Ke1 {[%clk 0:00:21.3]} 43... Bb4+ {[%clk 0:01:59.6]} 44. Rd2 {[%clk 0:00:21.3]}
44... Rxd2 {[%clk 0:01:58.6]} 45. Kf1 {[%clk 0:00:21.9]} 45... Rd1# {[%clk
0:01:59.4]} 0-1

[Event "*** Titled Tuesday Blitz"]
[Site "Chess.com"]
[Date "2019.10.01"]
[Round "7"]
[White "Spalir"]
[Black "cool4chess"]
[Result "1-0"]
[WhiteElo "2819"]
[BlackElo "2593"]
[TimeControl "180+2"]
[EndTime "14:37:44 PDT"]
[Termination "Spalir won by resignation"]

1. d4 {[%clk 0:03:01.9]} 1... d5 {[%clk 0:03:00.9]} 2. c4 {[%clk 0:03:02.4]}
2... c6 {[%clk 0:03:02.3]} 3. Nc3 {[%clk 0:03:03.6]} 3... dxc4 {[%clk
0:03:02.8]} 4. e4 {[%clk 0:03:00.5]} 4... b5 {[%clk 0:03:03.6]} 5. a4 {[%clk
0:02:58.2]} 5... b4 {[%clk 0:03:04.2]} 6. Na2 {[%clk 0:02:59]} 6... Nf6 {[%clk
0:03:05.5]} 7. e5 {[%clk 0:02:58.6]} 7... Nd5 {[%clk 0:03:06.9]} 8. Bxc4 {[%clk
0:02:58.3]} 8... Bf5 {[%clk 0:03:07.8]} 9. Nf3 {[%clk 0:02:57.1]} 9... e6 {[%clk
0:03:07.4]} 10. O-O {[%clk 0:02:56.1]} 10... Nd7 {[%clk 0:03:04.6]} 11. Bg5
{[%clk 0:02:51.4]} 11... Be7 {[%clk 0:03:04.9]} 12. Bxe7 {[%clk 0:02:51.2]}
12... Qxe7 {[%clk 0:03:06.8]} 13. a5 {[%clk 0:02:49.1]} 13... O-O {[%clk
0:03:06.5]} 14. Re1 {[%clk 0:02:49.7]} 14... Rab8 {[%clk 0:03:02.8]} 15. Nc1
{[%clk 0:02:47.2]} 15... Rfd8 {[%clk 0:03:00.5]} 16. Nb3 {[%clk 0:02:44.9]}
16... Nc7 {[%clk 0:02:54.1]} 17. Qe2 {[%clk 0:02:36.9]} 17... c5 {[%clk
0:02:53.4]} 18. Rac1 {[%clk 0:02:22.4]} 18... h6 {[%clk 0:02:47.4]} 19. Qe3
{[%clk 0:02:19.5]} 19... Rdc8 {[%clk 0:01:51.1]} 20. dxc5 {[%clk 0:02:14.7]}
20... Nb5 {[%clk 0:01:51.6]} 21. Bxb5 {[%clk 0:02:12.3]} 21... Rxb5 {[%clk
0:01:53.5]} 22. Nfd4 {[%clk 0:02:13.2]} 22... Rbb8 {[%clk 0:01:49.1]} 23. c6
{[%clk 0:02:13.3]} 23... Nf8 {[%clk 0:01:49.1]} 24. Nc5 {[%clk 0:02:06.6]} 24...
Qe8 {[%clk 0:01:22.5]} 25. Na6 {[%clk 0:01:56.6]} 25... Ra8 {[%clk 0:01:23.1]}
26. Nxb4 {[%clk 0:01:57.3]} 26... Rab8 {[%clk 0:01:22]} 27. Qc3 {[%clk
0:01:56.3]} 27... Ng6 {[%clk 0:01:14.3]} 28. Na6 {[%clk 0:01:53.2]} 28... Ra8
{[%clk 0:01:15.7]} 29. b4 {[%clk 0:01:53]} 29... Ne7 {[%clk 0:01:17]} 30. Nxf5
{[%clk 0:01:50.5]} 30... exf5 {[%clk 0:01:13.3]} 31. b5 {[%clk 0:01:50.1]} 31...
Nd5 {[%clk 0:01:14.6]} 32. Qb3 {[%clk 0:01:48.6]} 32... Nf4 {[%clk 0:01:03.6]}
33. Nc5 {[%clk 0:01:39.8]} 33... Qe7 {[%clk 0:01:01.1]} 34. Qc4 {[%clk
0:01:29.3]} 34... Qg5 {[%clk 0:00:57.6]} 35. g3 {[%clk 0:01:30.8]} 35... Nh3+
{[%clk 0:00:38.9]} 36. Kg2 {[%clk 0:01:30.5]} 36... Qh5 {[%clk 0:00:40.3]} 37.
Qe2 {[%clk 0:01:25.7]} 37... Qxe2 {[%clk 0:00:27.6]} 38. Rxe2 {[%clk 0:01:27.6]}
38... Ng5 {[%clk 0:00:29.2]} 39. f4 {[%clk 0:01:28.2]} 39... Ne6 {[%clk
0:00:29.5]} 40. Nxe6 {[%clk 0:01:29.7]} 40... fxe6 {[%clk 0:00:31.4]} 41. b6
{[%clk 0:01:28.7]} 41... axb6 {[%clk 0:00:32.5]} 42. axb6 {[%clk 0:01:30.6]}
42... Rab8 {[%clk 0:00:33.5]} 43. b7 {[%clk 0:01:29.4]} 43... Rc7 {[%clk
0:00:34.2]} 44. Rd2 {[%clk 0:01:30.7]} 44... Kf8 {[%clk 0:00:28.3]} 45. Rd7
{[%clk 0:01:30.2]} 45... Rxd7 {[%clk 0:00:28.8]} 46. cxd7 {[%clk 0:01:31.4]}
46... Ke7 {[%clk 0:00:30.7]} 47. Rc8 {[%clk 0:01:32.5]} 1-0

[Event "*** Titled Tuesday Blitz"]
[Site "Chess.com"]
[Date "2019.10.01"]
[Round "7"]
[White "IMRosen"]
[Black "NiranjanNavalgund"]
[Result "1-0"]
[WhiteElo "2629"]
[BlackElo "2425"]
[TimeControl "180+2"]
[EndTime "14:37:45 PDT"]
[Termination "IMRosen won by resignation"]

1. e4 {[%clk 0:03:01.9]} 1... e5 {[%clk 0:02:59.9]} 2. Nf3 {[%clk 0:03:03.4]}
2... Nc6 {[%clk 0:03:01.3]} 3. Nc3 {[%clk 0:03:05.1]} 3... Nf6 {[%clk
0:03:02.1]} 4. d4 {[%clk 0:03:06.8]} 4... exd4 {[%clk 0:03:04]} 5. Nd5 {[%clk
0:03:08.4]} 5... Be7 {[%clk 0:03:04.7]} 6. Nxd4 {[%clk 0:02:53.1]} 6... O-O
{[%clk 0:03:00.3]} 7. Nxc6 {[%clk 0:02:34.1]} 7... dxc6 {[%clk 0:02:57.6]} 8.
Nxf6+ {[%clk 0:02:23.3]} 8... Bxf6 {[%clk 0:02:58.5]} 9. Qxd8 {[%clk 0:02:24.4]}
9... Rxd8 {[%clk 0:02:57.4]} 10. Bd3 {[%clk 0:02:20.7]} 10... c5 {[%clk
0:02:55.9]} 11. Ke2 {[%clk 0:02:10]} 11... Be6 {[%clk 0:02:56.8]} 12. c3 {[%clk
0:02:04.7]} 12... Rd7 {[%clk 0:02:55.3]} 13. Bc2 {[%clk 0:02:03.3]} 13... Bc4+
{[%clk 0:02:53.6]} 14. Ke1 {[%clk 0:02:00.6]} 14... Rad8 {[%clk 0:02:53.9]} 15.
Be3 {[%clk 0:01:56.8]} 15... b5 {[%clk 0:02:47.1]} 16. f4 {[%clk 0:01:24.3]}
16... b4 {[%clk 0:02:34]} 17. e5 {[%clk 0:01:25.5]} 17... Bh4+ {[%clk
0:02:13.5]} 18. g3 {[%clk 0:01:25.9]} 18... Be7 {[%clk 0:02:13.7]} 19. cxb4
{[%clk 0:01:15.2]} 19... cxb4 {[%clk 0:02:14]} 20. b3 {[%clk 0:01:16.8]} 20...
Bd5 {[%clk 0:02:11]} 21. Rf1 {[%clk 0:01:06.8]} 21... c5 {[%clk 0:02:10.9]} 22.
Rf2 {[%clk 0:00:55.4]} 22... c4 {[%clk 0:02:09.4]} 23. bxc4 {[%clk 0:00:55.3]}
23... Bxc4 {[%clk 0:02:10.3]} 24. Rd2 {[%clk 0:00:55.9]} 24... Rxd2 {[%clk
0:02:00.8]} 25. Bxd2 {[%clk 0:00:56.9]} 25... Bc5 {[%clk 0:02:02.7]} 26. Bb3
{[%clk 0:00:52.9]} 26... Bb5 {[%clk 0:01:54.5]} 27. Rc1 {[%clk 0:00:49]} 27...
Bf2+ {[%clk 0:01:28.5]} 28. Kxf2 {[%clk 0:00:41.7]} 28... Rxd2+ {[%clk
0:01:28.1]} 29. Ke3 {[%clk 0:00:43.2]} 29... Rd3+ {[%clk 0:01:26.3]} 30. Ke4
{[%clk 0:00:40.4]} 30... h6 {[%clk 0:01:01.8]} 31. Rc5 {[%clk 0:00:38.3]} 31...
Ba6 {[%clk 0:00:58.1]} 32. Ra5 {[%clk 0:00:36.1]} 32... Rxb3 {[%clk 0:00:45.2]}
33. axb3 {[%clk 0:00:38]} 33... Bb7+ {[%clk 0:00:47]} 34. Kd4 {[%clk 0:00:39]}
34... a6 {[%clk 0:00:47.9]} 35. Kc5 {[%clk 0:00:37.1]} 35... g5 {[%clk
0:00:46.5]} 36. Kb6 {[%clk 0:00:37.1]} 36... gxf4 {[%clk 0:00:48.4]} 37. Kxb7
{[%clk 0:00:35.9]} 1-0

[Event "*** Titled Tuesday Blitz"]
[Site "Chess.com"]
[Date "2019.10.01"]
[Round "7"]
[White "Rodalquilar"]
[Black "Dr-Bassem"]
[Result "1-0"]
[WhiteElo "2631"]
[BlackElo "2776"]
[TimeControl "180+2"]
[EndTime "14:37:46 PDT"]
[Termination "Rodalquilar won on time"]

1. d4 {[%clk 0:03:01.9]} 1... Nf6 {[%clk 0:02:58.5]} 2. Bf4 {[%clk 0:03:03]}
2... g6 {[%clk 0:02:56.8]} 3. Nc3 {[%clk 0:03:03.7]} 3... Bg7 {[%clk 0:02:58.4]}
4. e4 {[%clk 0:03:04.4]} 4... d6 {[%clk 0:02:59.5]} 5. Nf3 {[%clk 0:03:05.5]}
5... c6 {[%clk 0:02:58.6]} 6. Be2 {[%clk 0:03:06.6]} 6... Nbd7 {[%clk
0:02:34.3]} 7. O-O {[%clk 0:03:02.6]} 7... O-O {[%clk 0:02:33.8]} 8. Re1 {[%clk
0:03:03.1]} 8... Qc7 {[%clk 0:02:25]} 9. h3 {[%clk 0:02:54.9]} 9... e5 {[%clk
0:02:24.4]} 10. Be3 {[%clk 0:02:55.2]} 10... Re8 {[%clk 0:02:19.4]} 11. d5
{[%clk 0:02:53.8]} 11... cxd5 {[%clk 0:02:12.8]} 12. Nxd5 {[%clk 0:02:51.6]}
12... Nxd5 {[%clk 0:02:13.2]} 13. Qxd5 {[%clk 0:02:53.5]} 13... Nf6 {[%clk
0:02:12.3]} 14. Qd3 {[%clk 0:02:54.2]} 14... d5 {[%clk 0:02:13.4]} 15. Nd2
{[%clk 0:02:38]} 15... dxe4 {[%clk 0:01:47]} 16. Qc4 {[%clk 0:02:38.6]} 16...
Qxc4 {[%clk 0:01:37.1]} 17. Nxc4 {[%clk 0:02:38.9]} 17... Be6 {[%clk 0:01:32.3]}
18. Nd6 {[%clk 0:02:36.9]} 18... Re7 {[%clk 0:01:33]} 19. c4 {[%clk 0:02:31.9]}
19... Rd7 {[%clk 0:01:24.7]} 20. c5 {[%clk 0:02:32.6]} 20... Bf8 {[%clk
0:01:07]} 21. Red1 {[%clk 0:02:19.4]} 21... Bxd6 {[%clk 0:00:52.1]} 22. cxd6
{[%clk 0:02:18.8]} 22... Rad8 {[%clk 0:00:51.7]} 23. Bc5 {[%clk 0:01:58]} 23...
a6 {[%clk 0:00:44]} 24. Rac1 {[%clk 0:01:25.7]} 24... Rc8 {[%clk 0:00:39.7]} 25.
Ba3 {[%clk 0:01:24.1]} 25... Rxc1 {[%clk 0:00:38.5]} 26. Rxc1 {[%clk 0:01:26]}
26... Nd5 {[%clk 0:00:36]} 27. Rc8+ {[%clk 0:01:19.8]} 27... Kg7 {[%clk
0:00:37.1]} 28. Bc4 {[%clk 0:01:20.8]} 28... Nf4 {[%clk 0:00:28.3]} 29. Rc7
{[%clk 0:01:12.4]} 29... Rxc7 {[%clk 0:00:29.3]} 30. dxc7 {[%clk 0:01:14.3]}
30... Bc8 {[%clk 0:00:30.3]} 31. Bd6 {[%clk 0:01:05.8]} 31... Kf6 {[%clk
0:00:30.2]} 32. h4 {[%clk 0:01:02.4]} 1-0

[Event "*** Titled Tuesday Blitz"]
[Site "Chess.com"]
[Date "2019.10.01"]
[Round "7"]
[White "Andrei_Belozerov"]
[Black "TrenerChos"]
[Result "1-0"]
[WhiteElo "2526"]
[BlackElo "2405"]
[TimeControl "180+2"]
[EndTime "14:37:53 PDT"]
[Termination "Andrei_Belozerov won by checkmate"]

1. e4 {[%clk 0:03:00.4]} 1... c5 {[%clk 0:03:00.3]} 2. Nf3 {[%clk 0:03:00.4]}
2... d6 {[%clk 0:03:01.2]} 3. d4 {[%clk 0:03:01.4]} 3... cxd4 {[%clk 0:03:02.3]}
4. Nxd4 {[%clk 0:03:02.9]} 4... Nf6 {[%clk 0:03:03.3]} 5. Nc3 {[%clk 0:03:04.6]}
5... a6 {[%clk 0:03:04.5]} 6. f3 {[%clk 0:03:05.9]} 6... e5 {[%clk 0:03:03]} 7.
Nb3 {[%clk 0:02:48.5]} 7... Be6 {[%clk 0:02:57.4]} 8. Be3 {[%clk 0:02:50]} 8...
Be7 {[%clk 0:02:56.2]} 9. Qd2 {[%clk 0:02:50.9]} 9... Qc7 {[%clk 0:02:49.4]} 10.
O-O-O {[%clk 0:02:47.4]} 10... Nbd7 {[%clk 0:02:50.1]} 11. g4 {[%clk 0:02:47.7]}
11... h6 {[%clk 0:02:50.2]} 12. h4 {[%clk 0:02:46.9]} 12... O-O-O {[%clk
0:02:47.2]} 13. Kb1 {[%clk 0:02:46.2]} 13... Nc5 {[%clk 0:02:41.5]} 14. Qf2
{[%clk 0:02:14.5]} 14... Kb8 {[%clk 0:02:17.9]} 15. Be2 {[%clk 0:01:51.7]} 15...
Rd7 {[%clk 0:02:13.7]} 16. Nxc5 {[%clk 0:01:44.3]} 16... dxc5 {[%clk 0:02:12.2]}
17. Rxd7 {[%clk 0:01:44.9]} 17... Nxd7 {[%clk 0:02:08.5]} 18. Rd1 {[%clk
0:01:45.3]} 18... Nf8 {[%clk 0:02:01.5]} 19. f4 {[%clk 0:01:35.1]} 19... f6
{[%clk 0:01:50.4]} 20. f5 {[%clk 0:01:34]} 20... Bf7 {[%clk 0:01:49.4]} 21. Qf1
{[%clk 0:01:32.9]} 21... Nd7 {[%clk 0:01:49.3]} 22. Bc4 {[%clk 0:01:33]} 22...
Be8 {[%clk 0:01:47.9]} 23. Be6 {[%clk 0:01:33.1]} 23... Nb6 {[%clk 0:01:48.2]}
24. b3 {[%clk 0:01:26.9]} 24... Bc6 {[%clk 0:01:47.3]} 25. Qf2 {[%clk 0:01:20]}
25... Nd7 {[%clk 0:01:42]} 26. Nd5 {[%clk 0:01:18.8]} 26... Bxd5 {[%clk
0:01:42.6]} 27. Rxd5 {[%clk 0:01:19.5]} 27... Rd8 {[%clk 0:01:39.1]} 28. Qd2
{[%clk 0:00:55.7]} 28... Nf8 {[%clk 0:01:22.2]} 29. Rxd8+ {[%clk 0:00:56.1]}
29... Bxd8 {[%clk 0:01:20.8]} 30. Bxc5 {[%clk 0:00:53.6]} 30... Qxc5 {[%clk
0:01:19.4]} 31. Qxd8+ {[%clk 0:00:53.5]} 31... Ka7 {[%clk 0:01:20]} 32. Kb2
{[%clk 0:00:39.4]} 32... a5 {[%clk 0:01:17.8]} 33. a3 {[%clk 0:00:38.6]} 33...
b6 {[%clk 0:00:52]} 34. Bd5 {[%clk 0:00:37]} 34... Ka6 {[%clk 0:00:50.2]} 35.
Qa8+ {[%clk 0:00:36.3]} 35... Kb5 {[%clk 0:00:51]} 36. Bc4+ {[%clk 0:00:31.9]}
36... Qxc4 {[%clk 0:00:50.8]} 37. bxc4+ {[%clk 0:00:32.9]} 37... Kc5 {[%clk
0:00:51.5]} 38. Qd5# {[%clk 0:00:32.9]} 1-0